[Event "CAMPEONATO NACIONAL ABSOLUTO DE CHILE 2019"]
[Site "Torre ENTEL, Chile"]
[Date "2019.02.25"]
[Round "8.3"]
[White "Henriquez Villagra, Cristobal"]
[Black "Cuevas Araya, Walter"]
[Result "1-0"]
[TimeControl "90 minutos mas 30 segundos incremento por movida"]
[WhiteTitle "GM"]
[BlackTitle "FM"]
[WhiteFideId "3409350"]
[BlackFideId "3405028"]
[WhiteElo "2508"]
[BlackElo "2187"]

1. Nf3 {[%clk 01:30:48]} {[%emt 00:00:12]} Nf6 {[%clk 01:30:45]} {[%emt
00:00:16]} 2. c4 {[%clk 01:31:11]} {[%emt 00:00:06]} g6 {[%clk 01:30:53]}
{[%emt 00:00:22]} 3. g3 {[%clk 01:30:50]} {[%emt 00:00:51]} Bg7 {[%clk
01:30:24]} {[%emt 00:01:00]} 4. Bg2 {[%clk 01:31:14]} {[%emt 00:00:06]} O-O
{[%clk 01:29:54]} {[%emt 00:00:59]} 5. O-O {[%clk 01:31:37]} {[%emt 00:00:08]}
c6 {[%clk 01:26:27]} {[%emt 00:03:58]} 6. b3 {[%clk 01:24:44]} {[%emt
00:07:23]} d5 {[%clk 01:26:14]} {[%emt 00:00:43]} 7. Bb2 {[%clk 01:24:59]}
{[%emt 00:00:15]} Bg4 {[%clk 01:23:01]} {[%emt 00:03:42]} 8. d4 {[%clk
01:18:52]} {[%emt 00:06:37]} Bxf3 {[%clk 01:17:13]} {[%emt 00:06:18]} 9. Bxf3
{[%clk 01:18:52]} {[%emt 00:00:29]} e6 {[%clk 01:17:04]} {[%emt 00:00:40]} 10.
Qc2 {[%clk 01:03:36]} {[%emt 00:15:46]} Nbd7 {[%clk 01:12:28]} {[%emt
00:05:06]} 11. Rd1 {[%clk 01:01:30]} {[%emt 00:02:35]} h5 {[%clk 00:58:18]}
{[%emt 00:14:40]} 12. Nc3 {[%clk 01:00:46]} {[%emt 00:01:15]} Rc8 {[%clk
00:57:03]} {[%emt 00:01:45]} 13. Bg2 {[%clk 00:51:11]} {[%emt 00:10:05]} Re8
{[%clk 00:52:22]} {[%emt 00:05:11]} 14. e3 {[%clk 00:51:25]} {[%emt 00:00:16]}
Nf8 {[%clk 00:47:29]} {[%emt 00:05:24]} 15. Qe2 {[%clk 00:50:56]} {[%emt
00:00:58]} N8h7 {[%clk 00:44:22]} {[%emt 00:03:37]} 16. Rd2 {[%clk 00:49:11]}
{[%emt 00:02:16]} Bh6 {[%clk 00:40:13]} {[%emt 00:04:39]} 17. Rad1 {[%clk
00:48:51]} {[%emt 00:00:49]} Qc7 {[%clk 00:38:43]} {[%emt 00:02:00]} 18. Rc2
{[%clk 00:48:23]} {[%emt 00:00:58]} Qb8 {[%clk 00:39:05]} {[%emt 00:00:08]} 19.
b4 {[%clk 00:44:40]} {[%emt 00:04:13]} Bf8 {[%clk 00:38:16]} {[%emt 00:01:19]}
20. a3 {[%clk 00:44:20]} {[%emt 00:00:50]} Ng5 {[%clk 00:35:49]} {[%emt
00:02:57]} 21. f4 {[%clk 00:40:00]} {[%emt 00:04:50]} Ngh7 {[%clk 00:35:43]}
{[%emt 00:00:36]} 22. Rdc1 {[%clk 00:39:46]} {[%emt 00:00:44]} Bg7 {[%clk
00:29:15]} {[%emt 00:06:59]} 23. a4 {[%clk 00:39:18]} {[%emt 00:00:58]} Rcd8
{[%clk 00:28:40]} {[%emt 00:01:05]} 24. b5 {[%clk 00:38:46]} {[%emt 00:01:02]}
Ng4 {[%clk 00:28:17]} {[%emt 00:00:53]} 25. Nd1 {[%clk 00:37:35]} {[%emt
00:01:40]} Nhf6 {[%clk 00:22:29]} {[%emt 00:06:18]} 26. Bc3 {[%clk 00:37:42]}
{[%emt 00:00:23]} cxb5 {[%clk 00:18:42]} {[%emt 00:04:18]} 27. axb5 {[%clk
00:37:12]} {[%emt 00:01:01]} dxc4 {[%clk 00:14:14]} {[%emt 00:04:58]} 28. Ba5
{[%clk 00:34:16]} {[%emt 00:03:25]} b6 {[%clk 00:11:11]} {[%emt 00:03:34]} 29.
Bd2 {[%clk 00:34:40]} {[%emt 00:00:06]} Nd5 {[%clk 00:11:30]} {[%emt 00:00:11]}
30. Rxc4 {[%clk 00:34:55]} {[%emt 00:00:14]} Rc8 {[%clk 00:11:01]} {[%emt
00:00:59]} 31. Bf3 {[%clk 00:29:17]} {[%emt 00:06:09]} Nh6 {[%clk 00:09:26]}
{[%emt 00:02:05]} 32. e4 {[%clk 00:28:12]} {[%emt 00:01:34]} Ne7 {[%clk
00:09:52]} {[%emt 00:00:03]} 33. Be3 {[%clk 00:25:32]} {[%emt 00:03:11]} Rxc4
{[%clk 00:08:47]} {[%emt 00:01:35]} 34. Rxc4 {[%clk 00:25:57]} {[%emt
00:00:04]} Rc8 {[%clk 00:09:10]} {[%emt 00:00:08]} 35. Kg2 {[%clk 00:25:45]}
{[%emt 00:00:41]} Rxc4 {[%clk 00:06:46]} {[%emt 00:02:55]} 36. Qxc4 {[%clk
00:26:11]} {[%emt 00:00:04]} Qc8 {[%clk 00:07:07]} {[%emt 00:00:08]} 37. Nb2
{[%clk 00:25:01]} {[%emt 00:01:40]} Ng4 {[%clk 00:07:07]} {[%emt 00:00:30]} 38.
Bg1 {[%clk 00:21:54]} {[%emt 00:03:37]} Bf8 {[%clk 00:04:42]} {[%emt 00:02:56]}
39. e5 {[%clk 00:21:55]} {[%emt 00:00:28]} Qxc4 {[%clk 00:04:02]} {[%emt
00:01:10]} 40. Nxc4 {[%clk 00:22:24]} {[%emt 00:00:01]} Nf5 {[%clk 00:04:27]}
{[%emt 00:00:05]} 41. h3 {[%clk 00:22:25]} {[%emt 00:00:29]} Ngh6 {[%clk
00:04:41]} {[%emt 00:00:17]} 42. Bf2 {[%clk 00:22:18]} {[%emt 00:00:36]} Be7
{[%clk 00:04:12]} {[%emt 00:00:59]} 43. Nb2 {[%clk 00:18:25]} {[%emt 00:04:23]}
Kf8 {[%clk 00:04:01]} {[%emt 00:00:41]} 44. Nd3 {[%clk 00:18:43]} {[%emt
00:00:12]} Ke8 {[%clk 00:04:12]} {[%emt 00:00:20]} 45. g4 {[%clk 00:12:04]}
{[%emt 00:07:09]} hxg4 {[%clk 00:04:38]} {[%emt 00:00:04]} 46. hxg4 {[%clk
00:12:30]} {[%emt 00:00:03]} Nh4+ {[%clk 00:03:32]} {[%emt 00:01:36]} 47. Bxh4
{[%clk 00:07:20]} {[%emt 00:05:40]} Bxh4 {[%clk 00:03:59]} {[%emt 00:00:02]} 48.
Bc6+ {[%clk 00:07:26]} {[%emt 00:00:25]} Kd8 {[%clk 00:04:16]} {[%emt
00:00:13]} 49. Kf3 {[%clk 00:07:52]} {[%emt 00:00:04]} Be7 {[%clk 00:04:26]}
{[%emt 00:00:19]} 50. d5 {[%clk 00:07:33]} {[%emt 00:00:49]} exd5 {[%clk
00:04:32]} {[%emt 00:00:25]} 51. Bxd5 {[%clk 00:08:02]} {[%emt 00:00:01]} Ke8
{[%clk 00:04:06]} {[%emt 00:00:56]} 52. Nf2 {[%clk 00:08:06]} {[%emt 00:00:26]}
Bb4 {[%clk 00:02:39]} {[%emt 00:01:57]} 53. Ne4 {[%clk 00:08:14]} {[%emt
00:00:21]} Ke7 {[%clk 00:02:46]} {[%emt 00:00:24]} 54. Nf6 {[%clk 00:07:10]}
{[%emt 00:01:34]} Ba3 {[%clk 00:02:41]} {[%emt 00:00:35]} 55. Bc4 {[%clk
00:07:04]} {[%emt 00:00:36]} Bc5 {[%clk 00:02:32]} {[%emt 00:00:39]} 56. Ke4
{[%clk 00:06:57]} {[%emt 00:00:37]} Ba3 {[%clk 00:02:56]} {[%emt 00:00:06]} 57.
Bf1 {[%clk 00:05:31]} {[%emt 00:01:55]} Bc1 {[%clk 00:02:23]} {[%emt 00:01:04]}
58. Bh3 {[%clk 00:05:39]} {[%emt 00:00:22]} Kf8 {[%clk 00:01:38]} {[%emt
00:01:15]} 59. f5 {[%clk 00:05:02]} {[%emt 00:01:06]} gxf5+ {[%clk 00:01:45]}
{[%emt 00:00:23]} 60. gxf5 {[%clk 00:05:31]} Ng8 {[%clk 00:01:39]} {[%emt
00:00:36]} 61. Nd7+ {[%clk 00:05:57]} {[%emt 00:00:04]} Ke8 {[%clk 00:01:58]}
{[%emt 00:00:11]} 62. f6 {[%clk 00:06:24]} {[%emt 00:00:04]} Bb2 {[%clk
00:01:13]} {[%emt 00:01:16]} 63. Nb8 {[%clk 00:06:17]} {[%emt 00:00:36]} Kd8
{[%clk 00:01:02]} {[%emt 00:00:41]} 64. Nc6+ {[%clk 00:06:41]} {[%emt
00:00:06]} Kc7 {[%clk 00:01:26]} {[%emt 00:00:06]} 65. Nxa7 {[%clk 00:06:51]}
{[%emt 00:00:19]} Nxf6+ {[%clk 00:00:45]} {[%emt 00:01:11]} 66. exf6 {[%clk
00:07:16]} {[%emt 00:00:05]} Bxf6 {[%clk 00:01:13]} {[%emt 00:00:02]} 67. Kd5
{[%clk 00:07:23]} {[%emt 00:00:22]} Be7 {[%clk 00:01:23]} {[%emt 00:00:19]} 68.
Bf5 {[%clk 00:07:50]} {[%emt 00:00:05]} Bf8 {[%clk 00:01:23]} {[%emt 00:00:30]}
69. Nc6 {[%clk 00:08:14]} {[%emt 00:00:05]} Bc5 {[%clk 00:01:25]} {[%emt
00:00:28]} 70. Ne5 {[%clk 00:08:37]} {[%emt 00:00:06]} f6 {[%clk 00:01:41]}
{[%emt 00:00:15]} 71. Ng4 {[%clk 00:08:46]} {[%emt 00:00:21]} Bg1 {[%clk
00:01:55]} {[%emt 00:00:15]} 72. Nxf6 {[%clk 00:09:08]} {[%emt 00:00:08]} Bf2
{[%clk 00:02:02]} {[%emt 00:00:21]} 73. Ke6 {[%clk 00:09:35]} {[%emt 00:00:04]}
Bc5 {[%clk 00:02:20]} {[%emt 00:00:12]} 74. Bg6 {[%clk 00:09:36]} {[%emt
00:00:30]} Kc8 {[%clk 00:02:08]} {[%emt 00:00:41]} 75. Nd7 {[%clk 00:09:57]}
{[%emt 00:00:10]} Bg1 {[%clk 00:02:21]} {[%emt 00:00:17]} 76. Kd6 {[%clk
00:10:23]} {[%emt 00:00:04]} Kb7 {[%clk 00:02:41]} {[%emt 00:00:10]} 77. Be4+
{[%clk 00:10:49]} {[%emt 00:00:04]} Ka7 {[%clk 00:03:02]} {[%emt 00:00:09]} 78.
Kc7 {[%clk 00:10:36]} {[%emt 00:00:43]} Bf2 {[%clk 00:02:09]} {[%emt 00:01:23]}
79. Kc8 {[%clk 00:10:52]} {[%emt 00:00:14]} Bg3 {[%clk 00:02:24]} {[%emt
00:00:16]} 80. Nf8 {[%clk 00:10:41]} {[%emt 00:00:41]} Bd6 {[%clk 00:01:15]}
{[%emt 00:01:39]} 81. Ne6 {[%clk 00:11:01]} {[%emt 00:00:09]} Bg3 {[%clk
00:01:05]} {[%emt 00:00:40]} 82. Bb7 {[%clk 00:11:25]} {[%emt 00:00:06]} Be5
{[%clk 00:00:42]} {[%emt 00:00:53]} 83. Nd8 {[%emt 00:00:14]} 1-0

[Event "CAMPEONATO NACIONAL ABSOLUTO DE CHILE 2019"]
[Site "Torre ENTEL, Chile"]
[Date "2019.02.25"]
[Round "8.4"]
[White "Torres Bravo, Cristobal"]
[Black "Aguirre Contreras, Cristian"]
[Result "1/2-1/2"]
[TimeControl "90 minutos mas 30 segundos incremento por movida"]
[WhiteTitle "FM"]
[BlackTitle "FM"]
[WhiteFideId "3405940"]
[BlackFideId "3412776"]
[WhiteElo "2347"]
[BlackElo "2252"]

1. d4 {[%clk 01:16:19]} {[%emt 00:14:41]} Nf6 {[%clk 01:28:48]} {[%emt
00:02:12]} 2. Nf3 {[%clk 01:16:44]} {[%emt 00:00:06]} e6 {[%clk 01:29:13]}
{[%emt 00:00:06]} 3. g3 {[%clk 01:17:10]} {[%emt 00:00:04]} d5 {[%clk
01:29:27]} {[%emt 00:00:16]} 4. Bg2 {[%clk 01:17:34]} {[%emt 00:00:04]} Be7
{[%clk 01:29:52]} {[%emt 00:00:05]} 5. O-O {[%clk 01:17:59]} {[%emt 00:00:05]}
O-O {[%clk 01:30:17]} {[%emt 00:00:05]} 6. c4 {[%clk 01:18:20]} {[%emt
00:00:09]} dxc4 {[%clk 01:30:17]} {[%emt 00:00:30]} 7. Qc2 {[%clk 01:18:17]}
{[%emt 00:00:34]} b6 {[%clk 01:30:03]} {[%emt 00:00:45]} 8. Bg5 {[%clk
01:18:41]} {[%emt 00:00:06]} Nd5 {[%clk 01:30:08]} {[%emt 00:00:25]} 9. Bxe7
{[%clk 01:17:46]} {[%emt 00:01:25]} Qxe7 {[%clk 01:29:59]} {[%emt 00:00:39]} 10.
Qxc4 {[%clk 01:17:02]} {[%emt 00:01:14]} Ba6 {[%clk 01:27:11]} {[%emt
00:03:18]} 11. Qc2 {[%clk 01:17:11]} {[%emt 00:00:20]} Nd7 {[%clk 01:20:57]}
{[%emt 00:06:44]} 12. Nc3 {[%clk 01:08:20]} {[%emt 00:09:21]} Nb4 {[%clk
01:02:58]} {[%emt 00:18:29]} 13. Qb1 {[%clk 01:01:29]} {[%emt 00:07:21]} c5
{[%clk 01:00:50]} {[%emt 00:02:39]} 14. a3 {[%clk 01:01:05]} {[%emt 00:00:55]}
Nc6 {[%clk 01:00:34]} {[%emt 00:00:45]} 15. dxc5 {[%clk 00:50:59]} {[%emt
00:10:36]} bxc5 {[%clk 00:59:02]} {[%emt 00:02:02]} 16. b4 {[%clk 00:48:18]}
{[%emt 00:03:11]} Rab8 {[%clk 00:54:10]} {[%emt 00:05:23]} 17. Ng5 {[%clk
00:30:33]} {[%emt 00:18:14]} Qxg5 {[%clk 00:52:32]} {[%emt 00:02:08]} 18. Bxc6
{[%clk 00:30:53]} {[%emt 00:00:10]} Ne5 {[%clk 00:48:54]} {[%emt 00:04:07]} 19.
Bg2 {[%clk 00:24:57]} {[%emt 00:06:26]} Rfc8 {[%clk 00:38:31]} {[%emt
00:10:53]} 20. f4 {[%clk 00:23:08]} {[%emt 00:02:19]} Qh6 {[%clk 00:36:21]}
{[%emt 00:02:41]} 21. b5 {[%clk 00:15:57]} {[%emt 00:07:40]} Ng4 {[%clk
00:32:35]} {[%emt 00:04:15]} 22. h3 {[%clk 00:16:10]} {[%emt 00:00:17]} Ne3
{[%clk 00:32:20]} {[%emt 00:00:45]} 23. Rc1 {[%clk 00:12:41]} {[%emt 00:04:00]}
Nxg2 {[%clk 00:28:13]} {[%emt 00:04:37]} 24. Kxg2 {[%clk 00:13:09]} {[%emt
00:00:01]} Qf6 {[%clk 00:28:12]} {[%emt 00:00:31]} 25. a4 {[%clk 00:09:45]}
{[%emt 00:03:55]} Bb7+ {[%clk 00:28:12]} {[%emt 00:00:29]} 26. Kh2 {[%clk
00:09:55]} {[%emt 00:00:20]} Qd4 {[%clk 00:28:09]} {[%emt 00:00:33]} 27. Nd1
{[%clk 00:10:24]} Qd2 {[%clk 00:23:05]} {[%emt 00:05:33]} 28. Qc2 {[%clk
00:05:47]} {[%emt 00:05:08]} Qe1 {[%clk 00:19:47]} {[%emt 00:03:48]} 29. e4
{[%clk 00:06:16]} {[%emt 00:00:01]} Bxe4 {[%clk 00:17:52]} {[%emt 00:02:25]} 30.
Nc3 {[%clk 00:06:12]} {[%emt 00:00:33]} Bxc2 {[%clk 00:17:58]} {[%emt
00:00:24]} 31. Rxe1 {[%clk 00:06:41]} {[%emt 00:00:01]} Rd8 {[%clk 00:17:53]}
{[%emt 00:00:36]} 32. Re2 {[%clk 00:07:04]} {[%emt 00:00:07]} Bd3 {[%clk
00:16:56]} {[%emt 00:01:28]} 33. Rd2 {[%clk 00:07:14]} {[%emt 00:00:20]} Rd4
{[%clk 00:17:13]} {[%emt 00:00:12]} 34. Rad1 {[%clk 00:07:12]} {[%emt
00:00:32]} Rbd8 {[%clk 00:17:39]} {[%emt 00:00:04]} 35. a5 {[%clk 00:06:14]}
{[%emt 00:01:29]} Kf8 {[%clk 00:16:56]} {[%emt 00:01:12]} 36. b6 {[%clk
00:05:40]} {[%emt 00:01:04]} axb6 {[%clk 00:17:24]} {[%emt 00:00:02]} 37. axb6
{[%clk 00:05:57]} {[%emt 00:00:13]} Ba6 {[%clk 00:17:03]} {[%emt 00:00:51]} 38.
Rxd4 {[%clk 00:05:47]} {[%emt 00:00:39]} cxd4 {[%clk 00:17:17]} {[%emt
00:00:17]} 39. Ne4 {[%clk 00:05:56]} {[%emt 00:00:22]} Be2 {[%clk 00:09:27]}
{[%emt 00:08:20]} 40. Rd2 {[%clk 00:06:05]} {[%emt 00:00:20]} d3 {[%clk
00:09:27]} {[%emt 00:00:30]} 41. Nc5 {[%clk 00:05:03]} {[%emt 00:01:32]} Ke7
{[%clk 00:09:28]} {[%emt 00:00:29]} 42. b7 {[%clk 00:05:19]} {[%emt 00:00:14]}
Rb8 {[%clk 00:09:19]} {[%emt 00:00:38]} 43. Rb2 {[%clk 00:03:33]} {[%emt
00:02:16]} Bf3 {[%clk 00:08:59]} {[%emt 00:00:50]} 44. Kg1 {[%clk 00:02:51]}
{[%emt 00:01:12]} Kd6 {[%clk 00:08:31]} {[%emt 00:00:57]} 45. Nxd3 {[%clk
00:03:10]} {[%emt 00:00:10]} Rxb7 {[%clk 00:08:51]} {[%emt 00:00:11]} 46. Rxb7
{[%clk 00:02:57]} {[%emt 00:00:43]} Bxb7 {[%clk 00:09:19]} {[%emt 00:00:02]} 47.
Kf2 {[%clk 00:03:05]} {[%emt 00:00:21]} f6 {[%clk 00:09:30]} {[%emt 00:00:19]}
48. Ke3 {[%clk 00:03:06]} {[%emt 00:00:29]} e5 {[%clk 00:09:53]} {[%emt
00:00:06]} 49. h4 {[%clk 00:03:00]} {[%emt 00:00:36]} Bc8 {[%clk 00:09:19]}
{[%emt 00:01:05]} 50. Nc1 {[%clk 00:03:11]} {[%emt 00:00:19]} Ba6 {[%clk
00:09:03]} {[%emt 00:00:46]} 51. Nb3 {[%clk 00:03:30]} {[%emt 00:00:11]} Bc4
{[%clk 00:09:12]} {[%emt 00:00:20]} 52. Nd2 {[%clk 00:03:49]} {[%emt 00:00:11]}
Bd5 {[%clk 00:09:35]} {[%emt 00:00:08]} 53. Nb1 {[%clk 00:04:03]} {[%emt
00:00:16]} h5 {[%clk 00:08:55]} {[%emt 00:01:10]} 54. Nc3 {[%clk 00:04:21]}
{[%emt 00:00:12]} Bc6 {[%clk 00:09:01]} {[%emt 00:00:24]} 55. Nb1 {[%clk
00:04:29]} {[%emt 00:00:22]} Ke6 {[%clk 00:09:22]} {[%emt 00:00:10]} 56. fxe5
{[%clk 00:04:40]} {[%emt 00:00:19]} fxe5 {[%clk 00:09:13]} {[%emt 00:00:39]} 57.
Nc3 {[%clk 00:04:50]} {[%emt 00:00:19]} Kf5 {[%clk 00:09:33]} {[%emt 00:00:09]}
58. Kf2 {[%clk 00:04:45]} {[%emt 00:00:36]} Kg4 {[%clk 00:08:41]} {[%emt
00:01:23]} 59. Nd1 {[%clk 00:05:08]} {[%emt 00:00:07]} Kf5 {[%clk 00:08:38]}
{[%emt 00:00:33]} 60. Ne3+ {[%clk 00:04:51]} {[%emt 00:00:47]} Ke4 {[%clk
00:08:44]} {[%emt 00:00:23]} 61. Nf1 {[%clk 00:05:08]} {[%emt 00:00:13]} Bd5
{[%clk 00:07:35]} {[%emt 00:01:39]} 62. Ne3 {[%clk 00:05:24]} {[%emt 00:00:14]}
Be6 {[%clk 00:08:03]} {[%emt 00:00:02]} 63. Nf1 {[%clk 00:05:42]} {[%emt
00:00:12]} Bh3 {[%clk 00:02:49]} {[%emt 00:05:43]} 64. Ne3 {[%clk 00:06:07]}
{[%emt 00:00:05]} Kd3 {[%clk 00:03:00]} {[%emt 00:00:19]} 65. Nd1 {[%clk
00:06:19]} {[%emt 00:00:19]} Bc8 {[%clk 00:02:13]} {[%emt 00:01:17]} 66. Ne3
{[%clk 00:06:45]} {[%emt 00:00:05]} Ba6 {[%clk 00:02:23]} {[%emt 00:00:18]} 67.
Nf1 {[%clk 00:07:03]} {[%emt 00:00:13]} Bc4 {[%clk 00:02:21]} {[%emt 00:00:32]}
68. Ne3 {[%clk 00:07:30]} {[%emt 00:00:04]} Bb3 {[%clk 00:02:45]} {[%emt
00:00:06]} 69. Nf1 {[%clk 00:07:51]} {[%emt 00:00:08]} Bd1 {[%clk 00:02:16]}
{[%emt 00:00:59]} 70. Ne3 {[%clk 00:08:17]} {[%emt 00:00:05]} Bg4 {[%clk
00:02:09]} {[%emt 00:00:37]} 71. Nf1 {[%clk 00:08:33]} {[%emt 00:00:14]} Bh3
{[%clk 00:01:12]} {[%emt 00:01:27]} 72. Ne3 {[%clk 00:09:02]} {[%emt 00:00:02]}
Ke4 {[%clk 00:00:40]} {[%emt 00:01:01]} 73. Nd1 {[%clk 00:09:26]} {[%emt
00:00:07]} Bc8 {[%clk 00:01:01]} {[%emt 00:00:09]} 74. Ne3 {[%clk 00:09:50]}
{[%emt 00:00:05]} Ba6 {[%clk 00:01:21]} {[%emt 00:00:10]} 75. Nd1 {[%clk
00:10:05]} {[%emt 00:00:14]} g6 {[%clk 00:01:33]} {[%emt 00:00:19]} 76. Ne3
{[%clk 00:10:08]} {[%emt 00:00:27]} Bc8 {[%clk 00:01:32]} {[%emt 00:00:30]} 77.
Nd1 {[%clk 00:10:33]} {[%emt 00:00:05]} Be6 {[%clk 00:01:49]} {[%emt 00:00:13]}
78. Ne3 {[%clk 00:10:59]} {[%emt 00:00:04]} Bg4 {[%clk 00:02:01]} {[%emt
00:00:18]} 79. Nf1 {[%clk 00:11:12]} {[%emt 00:00:18]} Kd3 {[%clk 00:02:22]}
{[%emt 00:00:08]} 80. Ne3 {[%clk 00:11:37]} {[%emt 00:00:06]} Be6 {[%clk
00:02:12]} {[%emt 00:00:37]} 81. Nf1 {[%clk 00:11:47]} {[%emt 00:00:23]}
1/2-1/2

[Event "CAMPEONATO NACIONAL ABSOLUTO DE CHILE 2019"]
[Site "Torre ENTEL, Chile"]
[Date "2019.02.25"]
[Round "8.5"]
[White "Vergara Jofre, Felipe"]
[Black "Tapia Fuentes, Jaime"]
[Result "1/2-1/2"]
[TimeControl "90 minutos mas 30 segundos incremento por movida"]
[WhiteTitle "FM"]
[BlackTitle "FM"]
[WhiteFideId "3416291"]
[BlackFideId "3403025"]
[WhiteElo "2265"]
[BlackElo "2259"]

1. e4 {[%clk 01:27:55]} {[%emt 00:03:04]} c5 {[%clk 01:30:32]} {[%emt
00:00:29]} 2. Nf3 {[%clk 01:28:24]} {[%emt 00:00:02]} Nc6 {[%clk 01:30:53]}
{[%emt 00:00:08]} 3. d4 {[%clk 01:28:48]} {[%emt 00:00:06]} cxd4 {[%clk
01:31:16]} {[%emt 00:00:08]} 4. Nxd4 {[%clk 01:29:16]} {[%emt 00:00:02]} Nf6
{[%clk 01:31:38]} {[%emt 00:00:07]} 5. Nc3 {[%clk 01:29:04]} {[%emt 00:00:42]}
g6 {[%clk 01:32:02]} {[%emt 00:00:06]} 6. g3 {[%clk 01:14:54]} {[%emt
00:14:40]} d6 {[%clk 01:23:05]} {[%emt 00:09:27]} 7. Bg2 {[%clk 01:14:46]}
{[%emt 00:00:39]} Bg4 {[%clk 01:22:28]} {[%emt 00:01:06]} 8. f3 {[%clk
01:11:21]} {[%emt 00:03:56]} Bd7 {[%clk 01:22:44]} {[%emt 00:00:14]} 9. Be3
{[%clk 01:04:13]} {[%emt 00:07:38]} Bg7 {[%clk 01:23:06]} {[%emt 00:00:08]} 10.
O-O {[%clk 01:02:01]} {[%emt 00:02:43]} O-O {[%clk 01:23:30]} {[%emt 00:00:05]}
11. Nxc6 {[%clk 00:56:04]} {[%emt 00:06:27]} bxc6 {[%clk 01:20:57]} {[%emt
00:03:02]} 12. Qd2 {[%clk 00:53:33]} {[%emt 00:03:02]} Qc7 {[%clk 01:18:27]}
{[%emt 00:03:00]} 13. Rad1 {[%clk 00:49:34]} {[%emt 00:04:29]} a5 {[%clk
01:10:02]} {[%emt 00:08:55]} 14. b3 {[%clk 00:43:17]} {[%emt 00:06:48]} c5
{[%clk 00:59:33]} {[%emt 00:10:58]} 15. Rfe1 {[%clk 00:39:52]} {[%emt
00:03:55]} a4 {[%clk 00:56:24]} {[%emt 00:03:40]} 16. Bg5 {[%clk 00:37:14]}
{[%emt 00:03:08]} Bc6 {[%clk 00:54:59]} {[%emt 00:01:54]} 17. Nd5 {[%clk
00:36:24]} {[%emt 00:01:20]} Bxd5 {[%clk 00:53:57]} {[%emt 00:01:32]} 18. exd5
{[%clk 00:36:52]} {[%emt 00:00:03]} axb3 {[%clk 00:43:56]} {[%emt 00:10:31]} 19.
axb3 {[%clk 00:35:27]} {[%emt 00:01:55]} c4 {[%clk 00:33:19]} {[%emt 00:11:06]}
20. Bf1 {[%clk 00:28:19]} {[%emt 00:07:38]} 1/2-1/2